bitfinex/quotes_SOLUSD_20260311
["timestamp","ask_amount","ask_price","bid_price","bid_amount"]
[1773236257544,3.69467311,86.969,86.931,40.26181684]
[1773236257747,3.69467311,86.967,86.931,40.26181684]
[1773236258137,3.69467311,86.949,86.93,0.2]
[1773236258330,7.40343927,86.96,86.931,11.50337624]
[1773236258527,7.40343927,86.98,86.932,3.84997159]
[1773236258733,7.40343927,86.98,86.94,7.40343927]
[1773236258931,7.40343927,86.97,86.94,7.40343927]
[1773236259246,7.40343927,86.96,86.931,11.50337624]
[1773236259445,7.40343927,86.97,86.931,40.26181684]
[1773236259648,7.40343927,86.98,86.94,7.40343927]
[1773236259845,11.49834998,86.969,86.936,11.50270212]
[1773236260242,7.40343927,86.97,86.94,7.40343927]
[1773236260453,18.9017124,86.97,86.94,7.40343927]
[1773236260647,15.16391062,86.974,86.94,7.40343927]
[1773236260844,3.66616881,86.974,86.95,7.40343927]
[1773236261046,11.49672,86.982,86.939,3.75335801]
[1773236261259,3.66616881,86.986,86.95,7.40343927]
[1773236261456,3.66616881,86.986,86.936,40.25948872]
[1773236261457,3.66616881,86.969,86.933,2.7]
[1773236261655,11.06960808,86.98,86.94,7.40343927]
[1773236262049,11.49702801,86.979,86.95,7.40343927]
[1773236263560,11.06960808,86.98,86.95,7.40343927]
[1773236263739,49.11269217,87.009,86.96,7.40343927]
[1773236263740,3.66616881,86.999,86.96,7.40343927]
[1773236263939,11.49319602,87.008,86.98,7.40343927]
[1773236264142,3.66616881,87.035,86.981,11.49676366]
[1773236264447,3.66616881,87.009,86.981,11.49676366]
[1773236264960,3.66616881,87.009,86.97,7.40343927]
[1773236266156,3.66616881,86.979,86.95,7.40343927]
[1773236266352,7.40343927,86.99,86.96,7.40343927]
[1773236266559,11.49393752,87.003,86.97,7.40343927]
[1773236266743,7.40343927,87.0,86.96,7.40343927]
[1773236267363,7.40343927,86.99,86.96,7.40343927]
[1773236267565,7.40343927,86.98,86.938,11.50245002]
[1773236267769,7.40343927,86.97,86.931,11.50337624]
[1773236268060,11.49570635,86.989,86.951,11.50073029]
[1773236268365,3.14,87.01,86.96,7.40343927]
[1773236268366,3.66616881,86.994,86.96,7.40343927]
[1773236268858,3.66616881,86.994,86.97,7.40343927]
[1773236269058,7.40343927,87.0,86.96,7.40343927]
[1773236269261,3.66616881,86.999,86.96,7.40343927]
[1773236269562,3.66616881,86.999,86.97,7.40343927]
[1773236270140,3.66616881,86.999,86.971,11.49808556]
[1773236270339,7.40343927,86.99,86.958,2.7]
[1773236270559,3.77939604,86.989,86.958,2.7]
[1773236270759,3.77939604,86.989,86.938,28.75599095]
[1773236270962,7.40343927,86.97,86.931,13.62168816]
[1773236271138,7.40343927,86.97,86.94,7.40343927]
[1773236271340,7.40343927,86.98,86.95,7.40343927]
[1773236271546,3.77939604,86.979,86.94,7.40343927]
[1773236271741,3.77939604,86.979,86.95,7.40343927]
[1773236271958,3.77939604,86.979,86.96,7.40343927]
[1773236272164,3.77939604,86.979,86.95,7.40343927]
[1773236272669,11.4964339,86.984,86.96,7.40343927]
[1773236273052,3.77939604,86.999,86.97,7.40343927]
[1773236273555,11.49332812,87.007,86.98,7.40343927]
[1773236273755,3.77939604,87.01,86.98,7.40343927]
[1773236273946,11.49306393,87.009,86.98,7.40343927]
[1773236274146,3.77939604,87.008,86.97,7.40343927]
[1773236275069,11.49255931,87.013,86.98,7.40343927]
[1773236275373,3.77939604,87.012,86.98,7.40343927]
[1773236276379,11.49181143,87.019,86.99,7.40343927]
[1773236276676,3.77939604,87.025,87.0,7.40343927]
[1773236277043,11.49108291,87.024,87.0,7.40343927]
[1773236277257,3.77939604,87.05,87.011,2.15064161]
[1773236277450,97.64697625,87.095,87.0,11.49423124]
[1773236277451,3.77939604,87.073,87.022,2.15064161]
[1773236277652,3.77939604,87.069,87.03,7.40343927]
[1773236277863,3.77939604,87.069,87.01,2.15064161]
[1773236277864,3.77939604,87.069,87.04,7.40343927]
[1773236278067,11.48448446,87.074,87.05,7.40343927]
[1773236278266,11.48448446,87.074,87.03,7.40343927]
[1773236278267,3.77939604,87.069,87.03,7.40343927]
[1773236278458,3.77939604,87.069,87.04,7.40343927]
[1773236279058,7.40343927,87.08,87.017,2.7]
[1773236279059,3.77939604,87.067,87.03,7.40343927]
[1773236279461,3.77939604,87.067,87.04,7.40343927]
[1773236279651,28.70982166,87.079,87.04,7.40343927]
[1773236279652,3.77939604,87.079,87.04,7.40343927]
[1773236279976,3.77939604,87.078,87.025,40.21832806]
[1773236280161,3.77939604,87.078,87.0,45.97671399]
[1773236280162,3.77939604,87.066,87.02,7.40343927]
[1773236280360,3.77939604,87.077,87.04,7.40343927]
[1773236281059,0.1,87.09,87.07,7.40343927]
[1773236281060,3.77939604,87.089,87.07,7.40343927]
[1773236281254,3.77939604,87.089,87.028,2.7]
[1773236281255,3.77939604,87.089,87.038,11.48923458]
[1773236281454,3.77939604,87.089,87.05,7.40343927]
[1773236281655,3.77939604,87.079,87.04,7.40343927]
[1773236282053,3.77939604,87.079,87.05,7.40343927]
[1773236282370,0.1,87.09,87.07,7.40343927]
[1773236282678,10.24796537,87.124,87.081,3.88693236]
[1773236282679,11.47802532,87.123,87.081,3.88693236]
[1773236283049,7.10796537,87.124,87.081,3.88693236]
[1773236283254,45.87543233,87.193,87.111,3.88693236]
[1773236283455,45.8663939,87.21,87.111,3.88693236]
[1773236283456,5.98984121,87.181,87.111,3.88693236]
[1773236283662,11.46958461,87.188,87.15,7.40343927]
[1773236283875,11.46920518,87.19,87.16,7.40343927]
[1773236284075,11.46920518,87.19,87.116,3.69383402]
[1773236284076,11.46920518,87.19,87.131,3.88693236]
[1773236284373,11.46920518,87.19,87.13,2.68]
[1773236284374,40.1297912,87.217,87.16,7.40343927]
[1773236284570,3.77939604,87.189,87.15,7.40343927]
[1773236284877,3.77939604,87.179,87.131,3.88693236]
[1773236285072,3.77939604,87.169,87.13,10.08343927]
[1773236285376,137.58785556,87.217,87.096,3.69383402]
[1773236285377,3.77939604,87.193,87.16,7.16322192]
[1773236285975,11.4689421,87.192,87.15,3.88693236]
[1773236286175,11.4689421,87.192,87.141,2.68]
[1773236286176,11.4689421,87.192,87.16,7.40343927]
[1773236286474,11.46825676,87.198,87.16,7.40343927]
[1773236286651,11.46825676,87.198,87.17,7.40343927]
[1773236286854,11.46825676,87.198,87.131,86.07728591]
[1773236286855,2.69061061,87.189,87.132,3.88693236]
[1773236287066,11.46946362,87.189,87.15,7.40343927]
[1773236287260,11.46946362,87.189,87.12,7.40343927]
[1773236287261,7.40343927,87.16,87.12,7.40343927]
[1773236287660,7.40343927,87.15,87.11,7.40343927]
[1773236288381,3.77939604,87.159,87.112,11.47947469]
[1773236288576,3.77939604,87.169,87.13,7.40343927]
[1773236288777,7.40343927,87.14,87.061,45.94444612]
[1773236289081,7.40343927,87.14,87.041,45.95500493]
[1773236289082,7.40343927,87.13,87.073,2.68]
[1773236289284,40.16156422,87.148,87.081,3.88693236]
[1773236289285,3.77939604,87.132,87.081,3.88693236]
[1773236289458,3.77939604,87.132,87.074,11.48448446]
[1773236289459,3.77939604,87.109,87.074,11.48448446]
[1773236289786,7.40343927,87.12,87.08,7.40343927]
[1773236289978,3.77939604,87.119,87.073,2.68]
[1773236290281,7.40343927,87.1,87.073,2.68]
[1773236290463,0.14216157,87.141,87.006,45.97347135]
[1773236290464,7.40343927,87.09,87.05,7.40343927]
[1773236290782,3.77939604,87.107,87.07,7.40343927]
[1773236291272,3.69383402,87.161,87.043,86.16430959]
[1773236291273,7.40343927,87.13,87.09,7.40343927]
[1773236291457,11.46881056,87.193,87.121,3.88693236]
[1773236291658,7.40343927,87.18,87.14,7.40343927]
[1773236291863,7.40343927,87.17,87.121,3.88693236]
[1773236292060,7.40343927,87.18,87.14,7.40343927]
[1773236292381,7.40343927,87.19,87.16,7.40343927]
[1773236292580,7.40343927,87.19,87.15,7.40343927]
[1773236293174,11.46933672,87.189,87.151,15.36127]
[1773236293379,11.46866574,87.195,87.16,7.40343927]
[1773236293782,45.85424799,87.233,87.151,44.0471141]
[1773236293783,7.40343927,87.21,87.17,7.40343927]
[1773236294079,3.77939604,87.189,87.151,11.47433764]
[1773236294589,3.77939604,87.202,87.152,3.88693236]
[1773236294758,7.40343927,87.19,87.152,3.88693236]
[1773236295156,11.46933672,87.189,87.152,3.88693236]
[1773236295360,40.14267854,87.189,87.151,3.88693236]
[1773236295561,3.77939604,87.199,87.16,7.40343927]
[1773236295882,3.77939604,87.189,87.15,7.90343927]
[1773236296581,3.77939604,87.189,87.15,11.79037163]
[1773236297083,3.77939604,87.179,87.15,0.5]
[1773236297273,3.77939604,87.179,87.134,2.68]
[1773236297274,11.47078391,87.178,87.141,3.88693236]
[1773236297590,3.77939604,87.177,87.136,3.88693236]
[1773236297889,15.24873276,87.189,87.15,7.40343927]
[1773236298183,3.77939604,87.189,87.136,3.88693236]
[1773236298376,3.77939604,87.189,87.135,11.47644459]
[1773236298377,7.40343927,87.16,87.13,3.88693236]
[1773236298580,7.40343927,87.16,87.121,11.47828881]
[1773236299079,7.40343927,87.245,87.121,11.47828881]
[1773236299080,3.77939604,87.178,87.131,3.88693236]
[1773236299388,45.85157844,87.238,87.115,2.68]
[1773236299389,7.40343927,87.19,87.16,7.40343927]
[1773236299566,7.40343927,87.19,87.151,3.88693236]
[1773236299762,7.40343927,87.18,87.151,3.88693236]
[1773236300071,7.40343927,87.18,87.14,7.40343927]
[1773236300072,3.87990449,87.179,87.14,7.40343927]
[1773236300271,3.87990449,87.179,87.132,40.16893907]
[1773236300272,7.40343927,87.19,87.151,3.65062683]
[1773236300584,7.40343927,87.16,87.13,7.40343927]
[1773236300791,7.40343927,87.19,87.15,7.40343927]
[1773236300983,3.87990449,87.189,87.15,7.40343927]
[1773236301185,3.87990449,87.189,87.151,11.47433764]
[1773236301484,15.34928216,87.189,87.151,15.12496447]
[1773236301684,7.40343927,87.18,87.14,7.40343927]
[1773236301865,7.40343927,87.18,87.14,18.87919167]
[1773236302068,7.40343927,87.18,87.14,22.5298185]
[1773236302266,45.85223572,87.237,87.14,22.5298185]
[1773236302267,3.87990449,87.193,87.151,3.65062683]
[1773236302566,7.40343927,87.19,87.151,3.65062683]
[1773236302769,40.14049799,87.194,87.141,3.65062683]
[1773236303071,3.87990449,87.189,87.15,7.40343927]
[1773236303264,15.34753137,87.202,87.16,11.0540661]
[1773236303465,7.40343927,87.19,87.16,3.65062683]
[1773236303686,3.87990449,87.2,87.16,3.65062683]
[1773236303871,7.40343927,87.19,87.16,11.0540661]
[1773236304070,7.40343927,87.19,86.965,11.99257632]
[1773236304071,7.40343927,87.18,87.14,7.40343927]
[1773236304278,3.87990449,87.182,87.15,7.40343927]
[1773236304590,3.87990449,87.195,87.16,7.40343927]
[1773236305177,7.40343927,87.19,87.16,7.40343927]
[1773236305381,3.87990449,87.189,87.16,7.40343927]
[1773236305577,3.87990449,87.189,87.151,11.47433764]
[1773236305996,7.40343927,87.2,87.161,3.65062683]
[1773236306175,3.87990449,87.213,87.171,3.65062683]
[1773236306499,3.87990449,87.209,87.171,3.65062683]
[1773236306792,3.87990449,87.209,87.161,3.65062683]
[1773236306793,7.40343927,87.2,87.161,3.65062683]
[1773236306973,3.87990449,87.209,87.17,7.40343927]
[1773236307180,3.87990449,87.209,87.171,11.47170503]
[1773236307389,7.40343927,87.22,87.18,11.0540661]
[1773236307575,11.46512881,87.221,87.181,3.65062683]
[1773236307770,11.46512881,87.221,87.18,7.40343927]
[1773236307771,3.87990449,87.267,87.211,3.65062683]
[1773236308192,3.87990449,87.267,87.23,7.40343927]
[1773236308493,11.45803494,87.275,87.229,3.65062683]
[1773236308676,1e-08,87.276,87.25,7.40343927]
[1773236308877,11.45803494,87.275,87.241,3.65062683]
[1773236309200,11.45803494,87.275,87.171,281.05677341]
[1773236309201,1e-08,87.276,87.174,3.65062683]
[1773236309377,1e-08,87.276,87.224,3.65062683]
[1773236309575,1e-08,87.276,87.25,7.40343927]
[1773236309994,1e-08,87.276,87.244,3.65062683]
[1773236310289,1e-08,87.276,87.25,11.0540661]
[1773236310692,1e-08,87.276,87.234,3.65062683]
[1773236310885,1e-08,87.276,87.229,2.68]
[1773236310886,1e-08,87.276,87.261,3.65062683]
[1773236311285,3.87990449,87.308,87.27,7.40343927]
[1773236311694,7.3523774,87.3,87.263,3.65062683]
[1773236311876,11.23228189,87.3,87.263,3.65062683]
[1773236312073,3.87990449,87.308,87.27,7.3523774]
[1773236312281,0.1,87.31,87.29,7.3523774]
[1773236312594,3.87990449,87.339,87.289,3.65062683]
[1773236312792,3.87990449,87.329,87.29,7.3523774]
[1773236312987,3.87990449,87.329,87.3,7.3523774]
[1773236313193,7.3523774,87.34,87.3,7.3523774]
[1773236313494,7.3523774,87.34,87.302,3.65062683]
[1773236313699,3.87990449,87.349,87.302,3.65062683]
[1773236313700,3.87990449,87.349,87.31,7.3523774]
[1773236313902,3.87990449,87.349,87.313,3.65062683]
[1773236314305,3.87990449,87.349,87.31,7.3523774]
[1773236314513,3.87990449,87.355,87.277,3.65062683]
[1773236314799,7.3523774,87.3,87.263,3.65062683]
[1773236315001,3.87990449,87.339,87.29,7.3523774]
[1773236315176,7.3523774,87.32,87.279,3.65062683]
[1773236315379,85.85562867,87.356,87.26,7.3523774]
[1773236315380,3.87990449,87.299,87.26,7.3523774]
[1773236315686,11.23228189,87.29,87.25,7.3523774]
[1773236315889,3.87990449,87.29,87.25,7.3523774]
[1773236316098,40.08291436,87.319,87.23,40.12381061]
[1773236316099,3.87990449,87.279,87.24,7.3523774]
[1773236316284,7.3523774,87.27,87.23,47.47618801]
[1773236316478,3.87990449,87.279,87.24,7.3523774]
[1773236316800,7.3523774,87.28,87.24,7.3523774]
[1773236317002,11.23228189,87.28,87.24,7.3523774]
[1773236317612,3.87990449,87.269,87.23,7.3523774]
[1773236317896,11.23228189,87.28,87.24,11.00300423]
[1773236318096,3.87990449,87.279,87.24,11.00300423]
[1773236318299,3.87990449,87.279,87.222,40.12749076]
[1773236318300,3.87990449,87.259,87.222,11.46499736]
[1773236318505,3.87990449,87.259,87.211,3.65062683]
[1773236318506,7.3523774,87.25,87.211,3.65062683]
[1773236318686,11.23228189,87.25,87.211,3.65062683]
[1773236318882,11.23228189,87.25,87.153,45.89598154]
[1773236318883,7.3523774,87.23,87.185,3.65062683]
[1773236319084,7.3523774,87.23,87.19,11.00300423]
[1773236319389,11.23228189,87.23,87.19,11.00300423]
[1773236319791,22.6962389,87.23,87.191,11.46907364]
[1773236319993,11.46407731,87.229,87.191,40.14175774]
[1773236320189,7.3523774,87.23,87.192,3.95818263]
[1773236320379,7.3523774,87.23,87.191,40.14175774]
[1773236320380,4.08492096,87.31,87.221,3.95818263]
[1773236320583,4.08492096,87.289,87.25,7.3523774]
[1773236321005,4.08492096,87.279,87.24,7.3523774]
[1773236321203,7.3523774,87.29,87.25,7.3523774]
[1773236321408,4.08492096,87.295,87.26,7.3523774]
[1773236321595,4.08492096,87.31,87.27,7.3523774]
[1773236321906,4.08492096,87.31,87.271,11.45856011]
[1773236322095,4.08492096,87.308,87.271,11.45856011]
[1773236322503,11.43729836,87.3,87.265,11.45928623]
[1773236322687,4.08492096,87.299,87.26,7.3523774]
[1773236323014,4.08492096,87.299,87.25,11.46131805]
[1773236323307,7.3523774,87.29,87.25,47.46699057]
[1773236323505,4.08492096,87.299,87.25,7.3523774]
[1773236323800,40.08750529,87.309,87.239,28.65687268]
[1773236323801,11.43729836,87.28,87.24,7.3523774]
[1773236324003,11.45750982,87.279,87.241,11.46250042]
[1773236324182,11.45750982,87.279,87.25,7.3523774]
[1773236324383,15.54243078,87.279,87.241,11.46250042]
[1773236324584,4.08492096,87.278,87.241,11.46250042]
[1773236325288,7.3523774,87.27,87.236,11.46314388]
[1773236325483,4.08492096,87.278,87.24,7.3523774]
[1773236326309,40.10220331,87.277,87.24,18.8149455]
[1773236326610,15.54269333,87.277,87.24,18.8149455]
[1773236326818,4.08492096,87.277,87.24,18.8149455]
[1773236327115,4.08492096,87.277,87.24,47.47152505]
[1773236327295,4.08492096,87.269,87.23,7.3523774]
[1773236327497,7.3523774,87.27,87.23,11.31056003]
[1773236327818,4.08492096,87.285,87.25,7.3523774]
[1773236328019,7.3523774,87.28,87.25,7.3523774]
[1773236328317,4.08492096,87.297,87.26,7.3523774]
[1773236328504,7.3523774,87.29,87.254,3.95818263]
[1773236328688,4.08492096,87.289,87.251,11.46118669]
[1773236328894,4.08492096,87.289,87.26,7.3523774]
[1773236329103,5.98001238,87.394,87.252,3.95818263]
[1773236329104,7.3523774,87.3,87.252,3.95818263]
[1773236329299,7.3523774,87.3,87.26,7.3523774]
[1773236329715,4.08492096,87.301,87.27,7.3523774]
[1773236330019,4.15502094,87.3,87.252,3.95818263]
[1773236330218,3.1,87.323,87.27,7.3523774]
[1773236330424,4.15502094,87.32,87.28,7.3523774]
[1773236330716,4.15502094,87.319,87.28,11.50084413]
[1773236330911,4.15502094,87.319,87.28,7.3523774]
[1773236331108,4.15502094,87.309,87.28,7.3523774]
[1773236331301,4.15502094,87.309,87.271,11.45856011]
[1773236331498,7.3523774,87.3,87.261,11.45987325]
[1773236331716,4.15502094,87.299,87.261,11.45987325]
[1773236331913,4.15502094,87.299,87.26,7.3523774]
[1773236332098,7.3523774,87.3,87.203,45.86964856]
[1773236332099,4.15502094,87.279,87.212,3.69383402]
[1773236332305,7.3523774,87.28,87.25,7.3523774]
[1773236332509,4.15502094,87.278,87.241,15.61096715]
[1773236333006,4.15502094,87.269,87.236,11.46308613]
[1773236333302,7.3523774,87.28,87.25,7.3523774]
[1773236333502,7.3523774,87.29,87.25,7.3523774]
[1773236333707,4.15502094,87.279,87.241,4.14846673]
[1773236334423,4.15502094,87.279,87.205,0.14216157]
[1773236334424,11.45882272,87.269,87.231,4.14846673]
[1773236334605,40.10587952,87.269,87.231,4.14846673]
[1773236334805,4.15502094,87.315,87.251,4.14846673]
[1773236335006,7.3523774,87.29,87.251,4.14846673]
[1773236335904,7.3523774,87.3,87.26,11.50084413]
[1773236336407,7.3523774,87.29,87.26,4.14846673]
[1773236336808,7.3523774,87.28,87.241,4.14846673]
[1773236337019,7.3523774,87.29,87.251,4.14846673]
[1773236337921,44.2471182,87.299,87.24,4.14846673]
[1773236337922,7.3523774,87.28,87.24,4.14846673]
[1773236338228,4.15502094,87.289,87.251,4.14846673]
[1773236338409,40.09714965,87.288,87.251,4.14846673]
[1773236338611,40.09714965,87.288,87.252,11.46105533]
[1773236338804,40.09714965,87.288,87.253,4.14846673]
[1773236338805,11.45632847,87.288,87.253,4.14846673]
[1773236339023,11.45619722,87.289,87.253,4.14846673]
[1773236339916,40.09669029,87.289,87.253,4.14846673]
[1773236340224,11.45619722,87.289,87.253,4.14846673]
[1773236340434,28.63726474,87.299,87.261,4.14846673]
[1773236340435,11.45501615,87.298,87.261,4.14846673]
[1773236340622,11.45501615,87.298,87.263,4.14846673]
[1773236340827,11.45173665,87.323,87.281,4.14846673]
[1773236341007,7.3523774,87.32,87.281,4.14846673]
[1773236341418,3.1,87.336,87.262,40.10909673]
[1773236341419,4.15502094,87.339,87.301,4.14846673]
[1773236341727,7.3523774,87.33,87.291,4.14846673]
[1773236341933,7.3523774,87.35,87.311,4.14846673]
[1773236342124,7.3523774,87.34,87.311,4.14846673]
[1773236342425,7.3523774,87.35,87.311,4.14846673]
[1773236342624,11.44832797,87.349,87.313,4.14846673]
[1773236342926,7.3523774,87.34,87.301,4.14846673]
[1773236343117,4.15502094,87.339,87.301,4.14846673]
[1773236343426,40.06914789,87.349,87.31,7.3523774]
[1773236343622,40.06914789,87.349,87.302,4.14846673]
[1773236343809,4.15502094,87.348,87.302,4.14846673]
[1773236344009,7.3523774,87.34,87.302,4.14846673]
[1773236344414,11.44832797,87.349,87.311,4.14846673]
[1773236344619,11.44832797,87.349,87.313,4.14846673]
[1773236345019,4.15502094,87.339,87.301,4.14846673]
[1773236345640,4.15502094,87.339,87.268,91.67083536]
[1773236345641,11.50739834,87.32,87.28,7.3523774]
[1773236345817,7.3523774,87.31,87.277,4.14846673]
[1773236346024,131.65577165,87.349,87.256,4.14846673]
[1773236346025,4.15502094,87.299,87.256,4.14846673]
[1773236346333,11.50739834,87.31,87.271,4.14846673]
[1773236346634,11.45357294,87.309,87.273,4.14846673]
[1773236347635,11.45356257,87.31,87.273,4.14846673]
[1773236347838,4.15502094,87.319,87.281,4.14846673]
[1773236348123,7.3523774,87.31,87.27,7.3523774]
[1773236348328,7.3523774,87.31,87.235,1.14632888]
[1773236348329,4.15502094,87.309,87.268,4.14846673]
[1773236348733,4.15502094,87.299,87.25,11.50084413]
[1773236348917,4.15502094,87.299,87.251,4.14846673]
[1773236349236,4.15502094,87.299,87.26,7.3523774]
[1773236349734,4.15502094,87.299,87.251,4.14846673]
[1773236349735,7.3523774,87.29,87.251,4.14846673]
[1773236349929,4.15502094,87.299,87.251,4.14846673]
[1773236350136,40.08796443,87.308,87.27,7.3523774]
[1773236350436,4.15502094,87.329,87.268,4.14846673]
[1773236350637,4.15502094,87.355,87.31,4.14846673]
[1773236350847,4.15502094,87.349,87.31,11.50084413]
[1773236351132,11.44662439,87.362,87.311,4.14846673]
[1773236351133,7.3523774,87.36,87.311,4.14846673]
[1773236351313,7.3523774,87.35,87.311,4.14846673]
[1773236351510,4.15502094,87.359,87.32,7.3523774]
[1773236351920,54.68,87.381,87.34,7.3523774]
[1773236351921,7.3523774,87.38,87.34,7.3523774]
[1773236352120,4.15502094,87.379,87.341,4.14846673]
[1773236352318,7.3523774,87.37,87.331,4.14846673]
[1773236352728,11.44462146,87.378,87.34,7.3523774]
[1773236352925,11.4430878,87.389,87.341,4.14846673]
[1773236353128,7.3523774,87.38,87.341,4.14846673]
[1773236353723,4.15502094,87.388,87.341,4.14846673]
[1773236353927,7.3523774,87.38,87.341,4.14846673]
[1773236354125,40.0508073,87.389,87.341,4.14846673]
[1773236354126,11.4430878,87.389,87.341,4.14846673]
[1773236354321,11.54298323,87.39,87.351,4.14846673]
[1773236354519,4.15502094,87.389,87.351,4.14846673]
[1773236354720,4.15502094,87.379,87.34,7.3523774]
[1773236355031,4.15502094,87.379,87.311,2.66]
[1773236355032,4.15502094,87.379,87.313,4.14846673]
[1773236355333,4.15502094,87.37,87.33,7.3523774]
[1773236355635,4.15502094,87.387,87.341,4.14846673]
[1773236355816,4.15502094,87.387,87.351,4.14846673]
[1773236356017,4.15502094,87.387,87.32,28.63002378]
[1773236356018,4.15502094,87.387,87.34,7.3523774]
[1773236356330,4.15502094,87.387,87.341,4.14846673]
[1773236356528,4.15502094,87.387,87.32,28.63002378]
[1773236356529,11.44321874,87.388,87.351,4.14846673]
[1773236357035,40.05126561,87.388,87.351,4.14846673]
[1773236357231,40.05126561,87.388,87.285,58.2996411]
[1773236357232,4.15502094,87.379,87.339,4.14846673]
[1773236357537,4.15502094,87.379,87.337,11.44981464]
[1773236357838,40.05126561,87.388,87.35,7.3523774]
[1773236358441,4.15502094,87.379,87.341,4.14846673]
[1773236358822,11.4434423,87.387,87.35,11.50084413]
[1773236359218,0.1,87.39,87.361,4.14846673]
[1773236359421,11.4430878,87.389,87.361,4.14846673]
[1773236360338,11.4430878,87.389,87.351,4.19030369]
[1773236360638,11.4430878,87.389,87.36,7.3523774]
[1773236360834,0.1,87.39,87.36,7.3523774]
[1773236361235,0.1,87.39,87.357,11.44724918]
[1773236361528,4.2361818,87.389,87.351,15.63832238]
[1773236361930,0.1,87.39,87.361,4.19030369]
[1773236362519,0.1,87.39,87.36,7.3523774]
[1773236362727,0.1,87.39,87.361,11.44675541]
[1773236362938,0.1,87.39,87.359,4.19030369]
[1773236363146,4.2361818,87.389,87.35,7.3523774]
[1773236363443,4.2361818,87.379,87.341,4.19030369]
[1773236363624,4.2361818,87.369,87.32,7.3523774]
[1773236363829,0.1,87.39,87.317,2.66]
[1773236363830,4.2361818,87.359,87.317,2.66]
[1773236364141,4.2361818,87.369,87.33,7.3523774]
[1773236364344,0.1,87.39,87.321,4.19030369]
[1773236364345,11.5885592,87.36,87.321,4.19030369]
[1773236364542,7.3523774,87.35,87.317,14.11251093]
[1773236364726,11.44832797,87.349,87.317,2.66]
[1773236364922,4.2361818,87.348,87.302,4.19030369]
[1773236365123,4.2361818,87.348,87.31,7.3523774]
[1773236365318,4.2361818,87.319,87.28,7.3523774]
[1773236365519,4.2361818,87.289,87.238,4.19030369]
[1773236365722,7.3523774,87.28,87.241,4.19030369]
[1773236366023,4.2361818,87.289,87.241,4.19030369]
[1773236366223,4.2361818,87.289,87.229,40.12427059]
[1773236366224,4.2361818,87.278,87.24,11.54268109]
[1773236366438,4.2361818,87.278,87.24,7.3523774]
[1773236366620,7.3523774,87.29,87.251,4.19030369]
[1773236366826,7.10788191,87.372,87.229,97.44465715]
[1773236366827,11.4543601,87.303,87.271,11.45856011]
[1773236367029,4.2361818,87.299,87.255,11.46053079]
[1773236367220,4.2361818,87.289,87.255,11.46053079]
[1773236367426,4.2361818,87.289,87.25,18.81367542]
[1773236367625,4.2361818,87.314,87.261,4.19030369]
[1773236367848,4.2361818,87.314,87.274,4.19030369]
[1773236368142,15.68923002,87.313,87.274,4.19030369]
[1773236369246,15.68923002,87.313,87.275,11.45803494]
[1773236370147,4.2361818,87.309,87.27,7.3523774]
[1773236370441,4.2361818,87.299,87.26,7.3523774]
[1773236370643,4.2361818,87.299,87.261,11.45987325]
[1773236370822,4.2361818,87.309,87.27,7.3523774]
[1773236371024,4.2361818,87.309,87.271,11.45856011]
[1773236371025,11.45370412,87.308,87.271,11.45856011]
[1773236371343,4.2361818,87.299,87.226,3.69383402]
[1773236371553,85.90278094,87.308,87.241,4.19030369]
[1773236371554,4.2361818,87.284,87.241,4.19030369]
[1773236371848,4.2361818,87.296,87.26,7.35711138]
[1773236372021,4.2361818,87.307,87.27,7.35711138]
[1773236372447,11.59329318,87.32,87.28,11.54741507]
[1773236372747,4.2361818,87.332,87.28,4.19030369]
[1773236372939,4.2361818,87.332,87.267,2.66]
[1773236372940,4.2361818,87.332,87.293,4.19030369]
[1773236373140,7.35711138,87.33,87.293,4.19030369]
[1773236373449,7.35711138,87.33,87.255,0.14216157]
[1773236373450,4.2361818,87.328,87.279,4.19030369]
[1773236373743,4.2361818,87.328,87.29,7.35711138]
[1773236374151,4.2361818,87.34,87.291,4.19030369]
[1773236374326,7.35711138,87.35,87.31,11.54741507]
[1773236374534,4.2361818,87.349,87.31,4.19030369]
[1773236374744,4.2361818,87.349,87.31,7.35711138]
[1773236375050,11.59329318,87.35,87.311,4.19030369]
[1773236375225,4.2361818,87.35,87.32,7.35711138]
[1773236375739,7.35711138,87.36,87.321,11.45199894]
[1773236375740,11.44701747,87.359,87.321,11.45199894]
[1773236376123,11.44701747,87.359,87.311,4.19030369]
[1773236376124,7.35711138,87.35,87.311,4.19030369]
[1773236376319,11.44701747,87.359,87.32,7.35711138]
[1773236376821,4.2361818,87.358,87.33,7.35711138]
[1773236377029,4.2361818,87.369,87.331,4.19030369]
[1773236377237,4.2361818,87.369,87.34,7.35711138]
[1773236377545,4.2361818,87.369,87.32,7.35711138]
[1773236377845,7.35711138,87.36,87.32,7.35711138]
[1773236378071,4.2361818,87.339,87.304,11.45419889]
[1773236378226,7.35711138,87.35,87.31,7.35711138]
[1773236378428,4.2361818,87.349,87.31,7.35711138]
[1773236378621,7.35711138,87.34,87.305,4.19030369]
[1773236378827,4.2361818,87.349,87.305,4.19030369]
[1773236379128,4.2361818,87.349,87.304,11.45419889]
[1773236379129,7.35711138,87.36,87.32,7.35711138]
[1773236379324,7.35711138,87.35,87.311,4.19030369]